bitfinex/quotes_BTCUSD_20250726
["timestamp","ask_amount","ask_price","bid_price","bid_amount"]
[1753540195640,6.70463331,118210.0,118200.0,0.00114558]
[1753540195862,6.73139485,118210.0,118200.0,0.00114558]
[1753540197190,6.70463331,118210.0,118200.0,0.00114558]
[1753540198940,6.56391331,118210.0,118200.0,0.00114558]
[1753540199168,5.98147941,118210.0,118200.0,0.00114558]
[1753540199370,6.11959941,118210.0,118200.0,0.00114558]
[1753540201129,6.20407671,118210.0,118200.0,0.00114558]
[1753540202005,1.30862071,118210.0,118200.0,0.00114558]
[1753540202214,6.20407671,118210.0,118200.0,0.00114558]
[1753540202429,6.20399671,118210.0,118200.0,0.00114558]
[1753540202638,6.09126941,118210.0,118200.0,0.02756558]
[1753540202846,6.09126941,118210.0,118200.0,0.06253558]
[1753540203285,6.09126941,118210.0,118200.0,0.05936558]
[1753540205548,5.95126941,118210.0,118200.0,0.23174031]
[1753540205755,5.61126941,118210.0,118200.0,0.23174031]
[1753540205984,5.03974368,118210.0,118200.0,0.24020054]
[1753540206212,5.02277962,118210.0,118200.0,0.30138846]
[1753540206409,5.03123892,118210.0,118200.0,0.29292837]
[1753540206637,5.03969829,118210.0,118200.0,0.2486607]
[1753540206864,5.37969829,118210.0,118200.0,0.2486607]
[1753540207095,5.38815781,118210.0,118200.0,0.24020054]
[1753540207317,5.37969829,118210.0,118200.0,0.24020054]
[1753540207600,5.25239422,118210.0,118200.0,0.61750738]
[1753540207829,5.25239422,118210.0,118200.0,0.34159781]
[1753540208049,5.25239422,118210.0,118200.0,0.35851748]
[1753540208518,5.25239422,118210.0,118200.0,0.35005768]
[1753540208744,4.895456,118210.0,118200.0,0.72736423]
[1753540208997,4.895456,118210.0,118200.0,0.35851741]
[1753540209217,4.895456,118210.0,118200.0,0.6866052]
[1753540209436,0.025422,118220.0,118210.0,0.22636811]
[1753540209437,5.235456,118220.0,118210.0,0.22636811]
[1753540209662,5.235456,118220.0,118210.0,0.36388811]
[1753540209861,5.235456,118220.0,118210.0,0.39347811]
[1753540210300,5.25254386,118220.0,118210.0,0.39347811]
[1753540210732,5.25254386,118220.0,118210.0,0.39547811]
[1753540211165,5.2440857,118220.0,118210.0,0.47995541]
[1753540211424,0.3486297,118220.0,118210.0,0.47995541]
[1753540212064,0.34,118220.0,118210.0,0.47995541]
[1753540212310,5.2692842,118240.0,118230.0,0.2009618]
[1753540212516,5.51445248,118240.0,118230.0,0.3403518]
[1753540212741,5.51445248,118240.0,118230.0,0.3678718]
[1753540213128,5.5319015,118240.0,118230.0,0.3678718]
[1753540213791,5.54053883,118240.0,118230.0,0.3678718]
[1753540214132,0.64508283,118240.0,118230.0,0.3678718]
[1753540214343,5.54045655,118240.0,118230.0,0.42495878]
[1753540214947,5.86854434,118240.0,118230.0,0.42495878]
[1753540215536,5.69093955,118240.0,118230.0,0.42495878]
[1753540215738,5.34601965,118240.0,118230.0,0.44187459]
[1753540215949,5.35447645,118240.0,118230.0,0.44187459]
[1753540216163,5.26100693,118240.0,118230.0,0.45033225]
[1753540216391,0.35709413,118240.0,118230.0,0.45878983]
[1753540216606,0.00863733,118240.0,118230.0,0.45878983]
[1753540216819,4.90409333,118240.0,118230.0,0.45878983]
[1753540217012,4.895456,118240.0,118230.0,0.45878983]
[1753540217254,4.895456,118240.0,118230.0,0.45978983]
[1753540217475,4.9039128,118240.0,118230.0,0.45978983]
[1753540217709,4.9124989,118240.0,118230.0,0.45978983]
[1753540217926,4.9040421,118240.0,118230.0,0.45978983]
[1753540219018,4.91249883,118240.0,118230.0,0.45978983]
[1753540219233,4.9040421,118240.0,118230.0,0.45978983]
[1753540219655,5.3040421,118240.0,118230.0,0.45978983]
[1753540221587,5.3124989,118240.0,118230.0,0.45978983]
[1753540222343,5.31236974,118240.0,118230.0,0.45133225]
[1753540222545,5.3039128,118240.0,118230.0,0.45133225]
[1753540223137,5.31236967,118240.0,118230.0,0.45133232]
[1753540223322,5.31236967,118240.0,118230.0,0.45978998]
[1753540224176,5.31236967,118240.0,118230.0,0.46824756]
[1753540224459,5.3039128,118240.0,118230.0,0.46824756]
[1753540225576,5.31236974,118240.0,118230.0,0.45978998]
[1753540225782,5.31236967,118240.0,118230.0,0.46824756]
[1753540226009,5.295456,118240.0,118230.0,0.46824756]
[1753540226230,0.4,118240.0,118230.0,0.79633535]
[1753540226444,4.90391208,118250.0,118240.0,0.19451874]
[1753540226669,4.90391208,118250.0,118240.0,0.31377604]
[1753540226883,5.24391201,118250.0,118240.0,0.33310917]
[1753540227094,4.895456,118250.0,118240.0,0.34156604]
[1753540227543,5.235456,118250.0,118240.0,0.34156604]
[1753540227764,5.235456,118250.0,118240.0,0.34171162]
[1753540228474,0.34,118250.0,118240.0,0.34171162]
[1753540228689,5.24391208,118250.0,118240.0,0.34171162]
[1753540228911,5.235456,118250.0,118240.0,0.34171162]
[1753540229138,5.24391201,118250.0,118240.0,0.34171162]
[1753540229351,5.235456,118250.0,118240.0,0.34171162]
[1753540230232,5.24391208,118250.0,118240.0,0.34171162]
[1753540230437,5.235456,118250.0,118240.0,0.34171162]
[1753540230648,5.235456,118250.0,118240.0,0.34271162]
[1753540231698,5.24391208,118250.0,118240.0,0.33425475]
[1753540231959,5.25253585,118250.0,118240.0,0.34271162]
[1753540232174,5.24407977,118250.0,118240.0,0.34271162]
[1753540234587,0.34862377,118250.0,118240.0,0.34271162]
[1753540235079,0.34862377,118250.0,118240.0,0.67079941]
[1753540235489,0.34862377,118250.0,118240.0,0.34271162]
[1753540238343,0.34,118250.0,118240.0,0.34271162]
[1753540239486,5.63361791,118270.0,118260.0,0.17757483]
[1753540239712,5.72012521,118270.0,118260.0,0.32508041]
[1753540239925,5.72012521,118270.0,118260.0,0.31662447]
[1753540240136,5.39203742,118270.0,118260.0,0.32508041]
[1753540240365,5.72801965,118270.0,118260.0,0.32508041]
[1753540240568,5.73647487,118270.0,118260.0,0.32508041]
[1753540240766,5.74147487,118270.0,118260.0,0.32508041]
[1753540240985,5.41338708,118270.0,118260.0,0.32508041]
[1753540241155,5.74147487,118270.0,118260.0,0.32508041]
[1753540241359,0.51793108,118270.0,118260.0,0.32508041]
[1753540241588,5.73947487,118270.0,118260.0,0.32508041]
[1753540241818,5.74799602,118270.0,118260.0,0.32508041]
[1753540242042,5.74899602,118270.0,118260.0,0.30483889]
[1753540242257,5.91510061,118270.0,118260.0,0.30483889]
[1753540242681,5.91710061,118270.0,118260.0,0.30483889]
[1753540243366,5.41990823,118270.0,118260.0,0.30483889]
[1753540243600,5.74799602,118270.0,118260.0,0.30483889]
[1753540244344,5.41990823,118270.0,118260.0,0.362472]
[1753540244552,5.74799602,118270.0,118260.0,0.362472]
[1753540245141,5.41990823,118270.0,118260.0,0.362472]
[1753540245554,5.74799602,118270.0,118260.0,0.362472]
[1753540246223,5.74800064,118270.0,118260.0,0.362472]
[1753540246666,5.91710523,118270.0,118260.0,0.362472]
[1753540246886,5.58901744,118270.0,118260.0,0.362472]
[1753540247172,5.95793187,118270.0,118260.0,0.362472]
[1753540249091,5.95793313,118270.0,118260.0,0.362472]
[1753540249503,5.78037332,118270.0,118260.0,0.37092794]
[1753540249914,5.78037332,118270.0,118260.0,0.30483889]
[1753540250113,5.78882854,118270.0,118260.0,0.31329483]
[1753540250561,5.78882854,118270.0,118260.0,0.30483889]
[1753540252195,5.41991411,118270.0,118260.0,0.30483889]
[1753540252426,5.78882854,118270.0,118260.0,0.30483889]
[1753540252903,5.94102318,118270.0,118260.0,0.30483889]
[1753540253569,5.95742318,118270.0,118260.0,0.30483889]
[1753540253782,1.06196718,118270.0,118260.0,0.30483889]
[1753540253936,1.05351203,118270.0,118260.0,0.30483889]
[1753540254157,5.94896803,118270.0,118260.0,0.30483889]
[1753540255469,6.08388803,118270.0,118260.0,0.30483889]
[1753540255679,6.06748803,118270.0,118260.0,0.30483889]
[1753540257823,1.17203203,118270.0,118260.0,0.30483889]
[1753540258033,6.06748803,118270.0,118260.0,0.13572]
[1753540259596,5.93256803,118270.0,118260.0,0.13572]
[1753540259837,1.03711203,118270.0,118260.0,0.13572]
[1753540260047,5.93256803,118270.0,118260.0,0.30483889]
[1753540260269,5.93256803,118270.0,118260.0,0.16911889]
[1753540260458,5.93256803,118270.0,118260.0,0.30375889]
[1753540261085,5.93258002,118270.0,118260.0,0.30375889]
[1753540261470,5.92466771,118270.0,118260.0,0.30375889]
[1753540262794,5.93008272,118270.0,118260.0,0.38399281]
[1753540264067,0.01152115,118270.0,118260.0,0.75900028]
[1753540264296,0.003,118270.0,118260.0,0.75900028]
[1753540265460,0.002,118270.0,118260.0,0.75900028]
[1753540266405,0.70891443,118280.0,118270.0,0.2259694]
[1753540266626,0.70891443,118280.0,118270.0,0.2280894]
[1753540266844,0.34843132,118280.0,118270.0,0.3399067]
[1753540269699,0.74843132,118280.0,118270.0,0.3399067]
[1753540270686,0.75688519,118280.0,118270.0,0.3399067]
[1753540271562,0.75688519,118280.0,118270.0,0.33145198]
[1753540271775,0.77379328,118280.0,118270.0,0.33990685]
[1753540272452,0.74843132,118280.0,118270.0,0.33990685]
[1753540272693,0.75688526,118280.0,118270.0,0.34836157]
[1753540273616,0.75688526,118280.0,118270.0,0.33990685]
[1753540273877,0.76533934,118280.0,118270.0,0.34836165]
[1753540274118,0.76533934,118280.0,118270.0,0.33990685]
[1753540274308,0.76533934,118280.0,118270.0,0.34836165]
[1753540274786,0.74843132,118280.0,118270.0,0.35681637]
[1753540275726,0.75688526,118280.0,118270.0,0.35681637]
[1753540275961,0.74843132,118280.0,118270.0,0.35681637]
[1753540276206,0.75688526,118280.0,118270.0,0.35681637]
[1753540278212,0.74843132,118280.0,118270.0,0.35681637]
[1753540279193,0.75688526,118280.0,118270.0,0.35681637]
[1753540280240,0.74843132,118280.0,118270.0,0.35681637]
[1753540280454,0.75688519,118280.0,118270.0,0.35681637]
[1753540281238,0.7653392,118280.0,118270.0,0.35681637]
[1753540283101,0.75688519,118280.0,118270.0,0.35681637]
[1753540283324,0.76533927,118280.0,118270.0,0.35681637]
[1753540283545,0.76533913,118280.0,118270.0,0.35681637]
[1753540284623,0.77379321,118280.0,118270.0,0.34836165]
[1753540284843,0.77379321,118280.0,118270.0,0.35681637]
[1753540285059,0.77379321,118280.0,118270.0,0.34836165]
[1753540285529,0.77576321,118280.0,118270.0,0.33990685]
[1753540285735,0.77576321,118280.0,118270.0,0.34836157]
[1753540285959,0.77576321,118280.0,118270.0,0.34836165]
[1753540286175,0.77576321,118280.0,118270.0,0.48200165]
[1753540286843,0.77576321,118280.0,118270.0,0.49045637]
[1753540287052,0.77576321,118280.0,118270.0,0.48200165]
[1753540287268,0.76733189,118280.0,118270.0,0.48200165]
[1753540287726,0.76733182,118280.0,118270.0,0.49045637]
[1753540288594,0.75887781,118280.0,118270.0,0.49045637]
[1753540288834,1.1276388,118280.0,118270.0,0.49045637]
[1753540289066,0.7276388,118280.0,118270.0,0.49045637]
[1753540289508,1.1276388,118280.0,118270.0,0.49045637]
[1753540291040,1.13599189,118280.0,118270.0,0.49045637]
[1753540291862,0.7672309,118280.0,118270.0,0.49045637]
[1753540292280,0.75032309,118280.0,118270.0,0.49045637]
[1753540292510,1.12753795,118280.0,118270.0,0.49045637]
[1753540293017,1.11908408,118280.0,118270.0,0.49045637]
[1753540293825,1.12753802,118280.0,118270.0,0.49045637]
[1753540294036,1.12753802,118280.0,118270.0,0.48200165]
[1753540294271,1.12753802,118280.0,118270.0,0.49045637]
[1753540294485,1.1359921,118280.0,118270.0,0.49045637]
[1753540295137,1.1712764,118280.0,118270.0,0.40389212]
[1753540295784,1.17973077,118280.0,118270.0,0.41234713]
[1753540295997,1.17973077,118280.0,118270.0,0.39543704]
[1753540296150,1.18818528,118280.0,118270.0,0.39543711]
[1753540296377,1.17973077,118280.0,118270.0,0.40389226]
[1753540296762,1.17973077,118280.0,118270.0,0.41234734]
[1753540297173,1.17973077,118280.0,118270.0,0.40389226]
[1753540297402,1.17973077,118280.0,118270.0,0.41234734]
[1753540298726,1.17973077,118280.0,118270.0,0.40389226]
[1753540298900,1.17973077,118280.0,118270.0,0.41234734]
[1753540299102,0.80251541,118280.0,118270.0,0.42080235]
[1753540299312,1.1712764,118280.0,118270.0,0.42080235]
[1753540299559,1.1682564,118280.0,118270.0,0.42080235]
[1753540300114,1.1682564,118280.0,118270.0,0.42925729]
[1753540300115,0.79949541,118280.0,118270.0,0.42925729]
[1753540300324,0.79949541,118280.0,118270.0,0.43677734]
[1753540300713,1.1682564,118280.0,118270.0,0.44523235]
[1753540301052,1.1598021,118280.0,118270.0,0.44523235]
[1753540301258,1.16825632,118280.0,118270.0,0.44523235]
[1753540301452,0.79949533,118280.0,118270.0,0.44523235]
[1753540301658,1.17671069,118280.0,118270.0,0.44523235]
[1753540301855,1.16825632,118280.0,118270.0,0.44523235]
[1753540302075,1.17671069,118280.0,118270.0,0.43677734]
[1753540302287,1.17671069,118280.0,118270.0,0.44523235]
[1753540302487,1.16825632,118280.0,118270.0,0.44523235]
[1753540302732,0.79949533,118280.0,118270.0,0.44523235]
[1753540302964,1.16825632,118280.0,118270.0,0.43677734]
[1753540303200,1.17671069,118280.0,118270.0,0.43677734]
[1753540303411,1.17671069,118280.0,118270.0,0.44523235]
[1753540304511,1.17671069,118280.0,118270.0,0.43677734]
[1753540304921,1.17671062,118280.0,118270.0,0.44523235]
[1753540305148,1.17671062,118280.0,118270.0,0.43677734]
[1753540305562,1.18516506,118280.0,118270.0,0.43677734]
[1753540305922,1.18516499,118280.0,118270.0,0.43677734]
[1753540306331,1.18516499,118280.0,118270.0,0.44523235]
[1753540306995,1.17671062,118280.0,118270.0,0.45368729]
[1753540307267,1.17671062,118280.0,118270.0,0.44523235]
[1753540307845,1.16825632,118280.0,118270.0,0.44523235]
[1753540308334,1.17671069,118280.0,118270.0,0.44523235]
[1753540308975,1.17671069,118280.0,118270.0,0.42832226]
[1753540309396,1.17671069,118280.0,118270.0,0.43677734]
[1753540310203,1.17671069,118280.0,118270.0,0.44523235]
[1753540310370,1.15290069,118280.0,118270.0,0.44523235]
[1753540310562,1.15290069,118280.0,118270.0,0.43677734]
[1753540310768,1.14444632,118280.0,118270.0,0.44523235]
[1753540311014,1.15290069,118280.0,118270.0,0.44523235]
[1753540311168,0.78413963,118280.0,118270.0,0.44523235]
[1753540311380,1.15290062,118280.0,118270.0,0.43677734]
[1753540311576,1.15290062,118280.0,118270.0,0.44523235]
[1753540314222,1.14444632,118280.0,118270.0,0.44523235]
[1753540314447,1.14444632,118280.0,118270.0,0.45368729]
[1753540314879,1.1359921,118280.0,118270.0,0.45582694]
[1753540315093,1.12753809,118280.0,118270.0,0.47092623]
[1753540315325,1.12753809,118280.0,118270.0,0.46554151]
[1753540315533,1.13599224,118280.0,118270.0,0.46554151]
[1753540315753,0.74,118280.0,118270.0,0.7170025]
[1753540316007,0.3867,118290.0,118280.0,0.22665296]
[1753540316209,0.3867,118290.0,118280.0,0.60933953]
[1753540316419,0.3867,118290.0,118280.0,0.63535953]
[1753540316420,0.7867,118290.0,118280.0,0.63535953]
[1753540317662,0.79528818,118290.0,118280.0,0.63635953]
[1753540317869,0.7867,118290.0,118280.0,0.26759854]
[1753540318090,0.7867,118290.0,118280.0,0.63635953]
[1753540318309,0.7867,118290.0,118280.0,0.26759854]
[1753540319576,0.4467,118290.0,118280.0,0.26759854]
[1753540320690,0.4550016,118290.0,118280.0,0.26759854]
[1753540321870,0.82376259,118290.0,118280.0,0.40091854]
[1753540327002,0.4550016,118290.0,118280.0,0.40091854]
[1753540327208,0.82376259,118290.0,118280.0,0.40091854]
[1753540332067,0.4550016,118290.0,118280.0,0.40091854]
[1753540332262,0.82376259,118290.0,118280.0,0.40091854]
[1753540334485,0.4550016,118290.0,118280.0,0.40091854]
[1753540334875,0.82376259,118290.0,118280.0,0.40091854]
[1753540337444,0.4550016,118290.0,118280.0,0.40091854]
[1753540337660,0.82376259,118290.0,118280.0,0.40091854]
[1753540341102,0.82571259,118290.0,118280.0,0.40091854]
[1753540342083,1.2370601,118290.0,118280.0,0.18187587]
[1753540342314,1.27731361,118290.0,118280.0,0.33202453]
[1753540342547,1.27731361,118290.0,118280.0,0.33202468]
[1753540342797,1.23906726,118290.0,118280.0,0.28532468]
[1753540343024,1.23906726,118290.0,118280.0,0.29377898]
[1753540343219,1.23906726,118290.0,118280.0,0.27683031]
[1753540343454,1.23906726,118290.0,118280.0,0.28528468]
[1753540344134,1.23906726,118290.0,118280.0,0.14363031]
[1753540344384,0.83906726,118290.0,118280.0,0.28528468]
[1753540344802,1.23906726,118290.0,118280.0,0.29373898]
[1753540345028,1.23061361,118290.0,118280.0,0.29373898]
[1753540345885,1.23906719,118290.0,118280.0,0.29373898]
[1753540346318,1.23061354,118290.0,118280.0,0.3021932]
[1753540346537,1.23906705,118290.0,118280.0,0.3021932]
[1753540346796,1.23906705,118290.0,118280.0,0.29373898]
[1753540347027,1.2475207,118290.0,118280.0,0.29373898]
[1753540347244,1.23906705,118290.0,118280.0,0.3021932]
[1753540347465,1.24752063,118290.0,118280.0,0.29373898]
[1753540348120,1.23906705,118290.0,118280.0,0.29373898]
[1753540348999,1.23906705,118290.0,118280.0,0.3021932]
[1753540349228,1.23906705,118290.0,118280.0,0.29373898]
[1753540349469,6.75989273,118290.0,118280.0,0.001]
[1753540349914,6.35989273,118290.0,118280.0,0.001]
[1753540350821,6.83058004,118290.0,118280.0,0.001]
[1753540351068,6.83158004,118290.0,118280.0,0.001]
[1753540351910,6.84838004,118290.0,118280.0,0.001]
[1753540352130,7.06601734,118290.0,118280.0,0.001]
[1753540352353,0.37382248,118260.0,118250.0,0.1691315]
[1753540352572,1.29658852,118260.0,118250.0,0.17758815]
[1753540352798,5.79096014,118260.0,118250.0,0.1691315]
[1753540353011,5.95162373,118260.0,118250.0,0.1691315]
[1753540353434,1.04771222,118260.0,118250.0,0.1691315]
[1753540353870,5.94316822,118260.0,118250.0,0.1691315]
[1753540354298,5.78250527,118260.0,118250.0,0.1691315]
[1753540355398,5.78250527,118260.0,118250.0,0.17758815]
[1753540355662,5.78250527,118260.0,118250.0,0.1691315]
[1753540356073,5.45452347,118260.0,118250.0,0.19738927]
[1753540356293,5.78250527,118260.0,118250.0,0.1691315]
[1753540358629,5.95162416,118260.0,118250.0,0.1691315]
[1753540362286,5.95162416,118260.0,118250.0,0.17758815]
[1753540362287,5.76710527,118260.0,118250.0,0.17758815]
[1753540362510,5.76395527,118260.0,118250.0,0.1691315]
[1753540362646,5.61388331,118260.0,118250.0,0.20195801]
[1753540362885,5.59921984,118260.0,118250.0,0.26452576]
[1753540363286,5.60767557,118260.0,118250.0,0.25606932]
[1753540363970,5.60767557,118260.0,118250.0,0.21041445]
[1753540364185,5.60767557,118260.0,118250.0,0.20195801]
[1753540364445,5.59921984,118260.0,118250.0,0.21041445]
[1753540364876,5.59921984,118260.0,118250.0,0.21246445]
[1753540365085,5.60767564,118260.0,118250.0,0.20400801]
[1753540365509,5.59921984,118260.0,118250.0,0.20195801]
[1753540365686,5.63160564,118260.0,118250.0,0.20195801]
[1753540365868,5.5977831,118260.0,118250.0,0.21041438]
[1753540366071,5.58198771,118260.0,118250.0,0.20400801]
[1753540366272,5.59044336,118260.0,118250.0,0.21246445]
[1753540366504,0.69498736,118260.0,118250.0,0.21246445]
[1753540366730,5.61437336,118260.0,118250.0,0.22092082]
[1753540367129,5.61437336,118260.0,118250.0,0.21246445]
[1753540367342,5.59889916,118260.0,118250.0,0.20400801]
[1753540367958,5.59044336,118260.0,118250.0,0.21246445]
[1753540368164,5.59889916,118260.0,118250.0,0.20400808]
[1753540368323,5.59889916,118260.0,118250.0,0.21246459]
[1753540368719,5.59889916,118260.0,118250.0,0.22092103]
[1753540368958,5.59044336,118260.0,118250.0,0.24548403]
[1753540369162,5.59889916,118260.0,118250.0,0.23702759]
[1753540369375,5.59044336,118260.0,118250.0,0.22092096]
[1753540369577,5.59044336,118260.0,118250.0,0.22092103]
[1753540369789,5.59889916,118260.0,118250.0,0.22092103]
[1753540369986,5.73201916,118260.0,118250.0,0.22092103]
[1753540370390,5.72356336,118260.0,118250.0,0.22092103]
[1753540370588,5.73201909,118260.0,118250.0,0.22092103]
[1753540371002,5.73201909,118260.0,118250.0,0.21246459]
[1753540371381,5.73201909,118260.0,118250.0,0.21041459]
[1753540371581,5.76440489,118260.0,118250.0,0.21041459]
[1753540372622,5.76440489,118260.0,118250.0,0.21887103]
[1753540372819,6.17442321,118260.0,118250.0,0.21887103]
[1753540372995,6.16596741,118260.0,118250.0,0.21887103]
[1753540373233,6.15751168,118260.0,118250.0,0.21887103]
[1753540373416,6.16596748,118260.0,118250.0,0.21887103]
[1753540373629,6.15716102,118260.0,118250.0,0.21887103]
[1753540373976,6.15716102,118260.0,118250.0,0.26831676]
[1753540374183,6.15716102,118260.0,118250.0,0.27677313]
[1753540374387,6.15716102,118260.0,118250.0,0.26831676]
[1753540374933,6.16561675,118260.0,118250.0,0.25986032]
[1753540375135,6.16561675,118260.0,118250.0,0.26831676]
[1753540375557,6.16561675,118260.0,118250.0,0.27677313]
[1753540375754,6.16561675,118260.0,118250.0,0.26831676]
[1753540376539,6.16561675,118260.0,118250.0,0.21887103]
[1753540377293,5.6037845,118260.0,118250.0,0.27087355]
[1753540377736,5.98123993,118260.0,118250.0,0.27087355]
[1753540377922,5.62069538,118260.0,118250.0,0.2624174]
[1753540378125,5.62069538,118260.0,118250.0,0.27087363]
[1753540378565,5.62069538,118260.0,118250.0,0.2718732]
[1753540378813,5.62069531,118260.0,118250.0,0.2718732]
[1753540379023,6.23564578,118260.0,118250.0,0.1701315]
[1753540379239,6.23564578,118260.0,118250.0,0.3031715]
[1753540379459,6.23564578,118260.0,118250.0,0.3041715]
[1753540379701,6.24410172,118260.0,118250.0,0.3041715]
[1753540379903,6.24410172,118260.0,118250.0,0.31262815]
[1753540380114,6.05022689,118260.0,118250.0,0.32108473]
[1753540380322,6.05022689,118260.0,118250.0,0.3041715]
[1753540380983,6.05022689,118260.0,118250.0,0.32744788]
[1753540381198,6.05022689,118260.0,118250.0,0.33590453]
[1753540381410,6.05022689,118260.0,118250.0,0.32744788]
[1753540382045,6.05022689,118260.0,118250.0,0.32740788]
[1753540382274,6.21089041,118260.0,118250.0,0.32740788]
[1753540382494,6.21089041,118260.0,118250.0,0.19440788]
[1753540382716,6.22609041,118260.0,118250.0,0.3041315]
[1753540383379,6.35909041,118260.0,118250.0,0.1711315]
[1753540383647,1.45517897,118260.0,118250.0,0.1711315]
[1753540383859,6.35063497,118260.0,118250.0,0.1711315]
[1753540384927,6.35063497,118260.0,118250.0,0.1701315]
[1753540385133,6.35063497,118260.0,118250.0,0.1691315]
[1753540387594,6.35063497,118260.0,118250.0,0.22048788]
[1753540388466,6.35063497,118260.0,118250.0,0.1691315]
[1753540392847,1.44672332,118260.0,118250.0,0.1691315]
[1753540393061,6.34217932,118260.0,118250.0,0.1691315]
[1753540394882,1.44672332,118260.0,118250.0,0.1691315]
[1753540395096,6.34217932,118260.0,118250.0,0.1691315]
[1753540397525,0.5175897,118250.0,118240.0,0.02293]
[1753540397725,4.90391387,118230.0,118220.0,0.17224399]
[1753540397924,5.65249136,118230.0,118220.0,0.35235989]
[1753540398127,5.65249136,118230.0,118220.0,0.22255996]
[1753540398277,5.29194917,118230.0,118220.0,0.35543996]
[1753540398500,5.2834913,118230.0,118220.0,0.41173082]
[1753540398748,5.2834913,118230.0,118220.0,0.42033484]
[1753540398941,5.29191426,118230.0,118220.0,0.42033484]
[1753540399823,5.29191426,118230.0,118220.0,0.4118764]
[1753540400060,5.69191426,118230.0,118220.0,0.36404406]
[1753540400460,6.06091432,118230.0,118220.0,0.36404413]
[1753540400668,6.09276219,118230.0,118220.0,0.35049562]
[1753540400868,5.67584659,118230.0,118220.0,0.35895406]
[1753540401068,5.66091425,118230.0,118220.0,0.36741243]
[1753540401269,5.66091425,118230.0,118220.0,0.36196406]
[1753540401926,5.66937205,118230.0,118220.0,0.35350562]
[1753540402097,5.66937205,118230.0,118220.0,0.36196413]
[1753540402824,5.66091425,118230.0,118220.0,0.42699788]
[1753540403048,5.66091425,118230.0,118220.0,0.42799788]
[1753540403467,5.66937198,118230.0,118220.0,0.40262234]
[1753540403669,5.67782992,118230.0,118220.0,0.40262234]
[1753540403891,5.67782985,118230.0,118220.0,0.41108093]
[1753540404099,5.67782985,118230.0,118220.0,0.41953944]
[1753540404283,5.67782985,118230.0,118220.0,0.41108093]
[1753540404694,5.66091425,118230.0,118220.0,0.36605406]
[1753540404897,5.66091425,118230.0,118220.0,0.37451243]
[1753540405124,5.29191419,118230.0,118220.0,0.36605406]
[1753540405747,5.30037206,118230.0,118220.0,0.35759562]
[1753540405957,5.86605392,118230.0,118220.0,0.30418957]
[1753540406175,5.73615006,118230.0,118220.0,0.32110703]
[1753540406406,5.72075006,118230.0,118220.0,0.32110703]
[1753540406613,5.66091425,118230.0,118220.0,0.40599588]
[1753540406814,5.66091425,118230.0,118220.0,0.41645425]
[1753540407025,5.66091425,118230.0,118220.0,0.41108588]
[1753540407256,5.66091425,118230.0,118220.0,0.41954432]
[1753540407908,5.66091425,118230.0,118220.0,0.41108588]
[1753540408133,5.66937205,118230.0,118220.0,0.41108588]
[1753540409640,5.66937205,118230.0,118220.0,0.35726554]
[1753540409977,5.66937205,118230.0,118220.0,0.35726562]
[1753540410394,5.66937205,118230.0,118220.0,0.34880703]
[1753540410655,5.66937205,118230.0,118220.0,0.35726562]
[1753540411007,5.65879425,118230.0,118220.0,0.37418257]
[1753540411257,5.65879425,118230.0,118220.0,0.4623213]
[1753540411563,5.65879425,118230.0,118220.0,0.43776293]
[1753540411817,5.65879425,118230.0,118220.0,0.37336533]
[1753540412063,5.65879425,118230.0,118220.0,0.39792377]
[1753540412267,5.29825199,118230.0,118220.0,0.38946533]
[1753540412496,5.30023192,118230.0,118220.0,0.38182377]
[1753540412723,5.30023192,118230.0,118220.0,0.37336533]
[1753540412937,5.67768985,118230.0,118220.0,0.35726533]
[1753540413116,5.67768985,118230.0,118220.0,0.34880682]
[1753540413323,5.67768985,118230.0,118220.0,0.34034823]
[1753540413531,5.66923198,118230.0,118220.0,0.35726533]
[1753540413732,5.66923198,118230.0,118220.0,0.42073538]
[1753540414122,5.66923198,118230.0,118220.0,0.41227694]
[1753540414384,5.66923198,118230.0,118220.0,0.42073538]
[1753540416507,5.65231659,118230.0,118220.0,0.44529368]
[1753540416734,5.65033659,118230.0,118220.0,0.45293538]
[1753540416927,5.65879425,118230.0,118220.0,0.46139375]
[1753540417163,5.65879425,118230.0,118220.0,0.39792348]
[1753540417373,5.65037129,118230.0,118220.0,0.39792348]
[1753540417505,5.65037129,118230.0,118220.0,0.38946511]
[1753540417701,5.65882902,118230.0,118220.0,0.38946511]
[1753540418203,0.76337302,118230.0,118220.0,0.38946511]
[1753540418429,5.65037129,118230.0,118220.0,0.39792348]
[1753540418663,4.91237117,118230.0,118220.0,0.45462673]
[1753540418900,5.65037129,118230.0,118220.0,0.45462673]
[1753540419127,5.65037129,118230.0,118220.0,0.39792348]
[1753540419306,5.65037129,118230.0,118220.0,0.38946511]
[1753540419546,5.65235129,118230.0,118220.0,0.37336511]
[1753540419735,5.28335123,118230.0,118220.0,0.37336511]
[1753540419991,5.28335123,118230.0,118220.0,0.38182348]
[1753540420213,0.38789523,118230.0,118220.0,0.38182348]
[1753540420416,5.28335123,118230.0,118220.0,0.38182348]
[1753540420602,5.65235129,118230.0,118220.0,0.38182348]
[1753540420900,5.6609303,118230.0,118220.0,0.38182348]
[1753540421103,5.6609303,118230.0,118220.0,0.43855673]
[1753540421313,5.6609303,118230.0,118220.0,0.38182348]
[1753540421524,5.6693881,118230.0,118220.0,0.34571696]
[1753540421779,5.6938081,118230.0,118220.0,0.35217547]
[1753540422237,0.7983521,118230.0,118220.0,0.35217547]
[1753540422422,5.6938081,118230.0,118220.0,0.35217547]
[1753540422853,6.23011289,118230.0,118220.0,0.30418957]
[1753540423813,6.23011289,118230.0,118220.0,0.17130957]
[1753540424060,6.23011289,118230.0,118220.0,0.30402957]
[1753540424918,6.23011289,118230.0,118220.0,0.30302957]
[1753540425147,6.23011289,118230.0,118220.0,0.30202957]
[1753540425360,6.23011289,118230.0,118220.0,0.16930957]
[1753540425571,6.35437502,118230.0,118220.0,0.13286558]
[1753540426215,6.35437502,118230.0,118220.0,0.30204169]
[1753540426872,6.33797502,118230.0,118220.0,0.30204169]
[1753540428003,6.33797502,118230.0,118220.0,0.31050049]
[1753540428202,6.33797502,118230.0,118220.0,0.30204169]
[1753540428352,6.20525502,118230.0,118220.0,0.30204169]
[1753540428589,6.1741308,118230.0,118220.0,0.38617903]
[1753540428783,6.18258846,118230.0,118220.0,0.37772037]
[1753540428989,6.1749459,118230.0,118220.0,0.37202776]
[1753540429788,6.1749459,118230.0,118220.0,0.3635691]
[1753540430229,6.1749459,118230.0,118220.0,0.35511037]
[1753540430402,6.18340399,118230.0,118220.0,0.36356917]
[1753540430841,6.1749459,118230.0,118220.0,0.31895922]
[1753540431454,1.2794899,118230.0,118220.0,0.31895922]
[1753540431664,6.17494647,118230.0,118220.0,0.30204169]
[1753540432088,6.17804647,118230.0,118220.0,0.30204169]
[1753540432504,6.17804647,118230.0,118220.0,0.31050049]
[1753540432713,6.17804647,118230.0,118220.0,0.32586711]
[1753540433133,6.17804647,118230.0,118220.0,0.33432584]
[1753540433397,6.18650456,118230.0,118220.0,0.32586711]
[1753540433593,6.18650456,118230.0,118220.0,0.31050049]
[1753540433806,6.20190456,118230.0,118220.0,0.31050049]
[1753540435145,6.3781087,118230.0,118220.0,0.30204169]